[Event "2nd Serbian League-Vojvodina 2023"]
[Site "Novi Sad"]
[Date "2023.11.04"]
[Round "4.21"]
[White "Pajcin, Lav"]
[Black "Ljepic, Andrej"]
[Result "0-1"]
[ECO "A44"]
[WhiteElo "2109"]
[BlackElo "2236"]
[Annotator "ChessBase"]
[PlyCount "182"]
[EventDate "2023.10.22"]
[EventType "team-tourn"]
[EventCountry "SRB"]
[SourceTitle "playchess.com"]
[Source "ChessBase"]
[SourceQuality "1"]
[TimeControl "40/5400+30:1800+30"]

1. d4 {[%emt 1:31:00]} c5 {[%emt 1:31:00]} 2. d5 {[%emt 0:00:30]} e5 {[%emt 0:00:30]} 3. e4 {[%emt 0:00:30]} d6 {[%emt 0:00:30]} 4. Nc3 {[%emt 0:00:30]} Nf6 {[%emt 0:00:30]} 5. g3 {[%emt 0:00:30]} Be7 {[%emt 0:00:30]} 6. Bg2 {[%emt 0:00:30]} O-O {[%emt 0:00:30]} 7. h3 {[%emt 0:00:30]} a6 {[%emt 0:00:30]} 8. a4 {[%emt 0:00:30]} Ne8 {[%emt 0:00:30]} 9. Nf3 {[%emt 0:00:00]} g6 {[%emt 0:00:00]} 10. Bh6 {[%emt 0:01:00]} Ng7 {[%emt 0:01:00]} 11. O-O {[%emt 0:00:00]} Nd7 {[%emt 0:00:00]} 12. Qc1 {[%emt 0:00:00]} Rb8 {[%emt 0:00:00]} 13. a5 {[%emt 0:00:00]} Nf6 {[%emt 0:00:00]} 14. Nd2 {[%emt 0:00:00]} Nfh5 {[%emt 0:00:00]} 15. Nc4 {[%emt 0:00:00]} f5 {[%emt 0:00:00]} 16. exf5 {[%emt 0:00:00]} gxf5 {[%emt 0:00:00]} 17. Kh2 {[%emt 0:00:00]} Qe8 {[%emt 0:00:00]} 18. Bg5 {[%emt 0:00:00]} Qd8 {[%emt 0:00:00]} 19. Bxe7 {[%emt 0:00:00]} Qxe7 {[%emt 0:00:00]} 20. f4 {[%emt 0:00:00]} e4 {[%emt 0:00:00]} 21. Rg1 {[%emt 0:00:00]} Nf6 {[%emt 0:00:00]} 22. Bf1 {[%emt 0:00:00]} Bd7 {[%emt 0:00:00]} 23. Qd2 {[%emt 0:00:00]} Kh8 {[%emt 0:00:00]} 24. Ne3 {[%emt 0:00:00]} Rg8 {[%emt 0:00:00]} 25. g4 {[%emt 0:00:00]} fxg4 {[%emt 0:00:00]} 26. hxg4 {[%emt 0:00:00]} Rbf8 {[%emt 0:00:00]} 27. Qf2 {[%emt 0:00:00]} Bc8 {[%emt 0:00:00]} 28. Be2 {[%emt 0:00:00]} Nd7 {[%emt 0:00:00]} 29. g5 {[%emt 0:00:00]} Ne5 {[%emt 0:00:00]} 30. Qg3 {[%emt 0:00:00]} Ng6 {[%emt 0:00:00]} 31. Raf1 {[%emt 0:00:00]} Nf5 {[%emt 0:00:00]} 32. Nxf5 {[%emt 0:00:00]} Bxf5 {[%emt 0:00:00]} 33. Nd1 {[%emt 0:00:34]} Qg7 {[%emt 0:00:00]} 34. c3 {[%emt 0:00:58]} Ne7 {[%emt 0:00:00]} 35. Ne3 {[%emt 0:00:08]} Qf7 {[%emt 0:00:00]} 36. Qh4 {[%emt 0:04:33]} Bd7 {[%emt 0:00:00]} 37. Bh5 {[%emt 0:00:37]} Qg7 {[%emt 0:00:00]} 38. Bg4 {[%emt 0:00:08]} Bf5 {[%emt 0:00:00]} 39. Qh3 {[%emt 0:01:26]} Qg6 {[%emt 0:00:00]} 40. Bxf5 {[%emt 0:00:15]} Nxf5 {[%emt 0:00:00]} 41. Ng4 {[%emt 0:30:06]} Rg7 {[%emt 0:22:30]} 42. Re1 {[%emt 0:00:59]} Re7 {[%emt 0:01:04]} 43. Rg2 {[%emt 0:01:27]} e3 {[%emt 0:01:39]} 44. Nxe3 {[%emt 0:02:06]} Re4 {[%emt 0:02:11]} 45. Nc2 {[%emt 0:01:41]} Rxf4 {[%emt 0:00:18]} 46. Re6 {[%emt 0:00:08]} Qg7 {[%emt 0:06:56]} 47. Rg4 {[%emt 0:00:06]} Rf2+ {[%emt 0:00:06]} 48. Rg2 {[%emt 0:00:04]} Ne7 {[%emt 0:01:33]} 49. Ne3 {[%emt 0:00:38]} Qxg5 {[%emt 0:04:31]} 50. Qg3 {[%emt 0:02:01]} Qxg3+ {[%emt 0:01:03]} 51. Kxg3 {[%emt 0:00:06]} R2f3+ {[%emt 0:00:19]} 52. Kh2 {[%emt 0:00:06]} Ng6 {[%emt 0:00:46]} 53. Rg3 {[%emt 0:01:55]} Rf2+ {[%emt 0:01:23]} 54. Rg2 {[%emt 0:00:09]} R2f6 {[%emt 0:01:31]} 55. Rxf6 {[%emt 0:01:44]} Rxf6 {[%emt 0:00:01]} 56. Nc4 {[%emt 0:00:30]} Kg7 {[%emt 0:00:34]} 57. b4 {[%emt 0:00:13]} cxb4 {[%emt 0:00:18]} 58. cxb4 {[%emt 0:00:04]} Kf7 {[%emt 0:02:39]} 59. Rb2 {[%emt 0:00:04]} Nf4 {[%emt 0:00:20]} 60. Nb6 {[%emt 0:00:55]} Kg6 {[%emt 0:02:40]} 61. b5 {[%emt 0:00:37]} Kf5 {[%emt 0:00:16]} 62. bxa6 {[%emt 0:00:20]} bxa6 {[%emt 0:00:04]} 63. Rd2 {[%emt 0:01:06]} Ke4 {[%emt 0:00:58]} 64. Rd1 {[%emt 0:00:44]} Rh6+ {[%emt 0:00:41]} 65. Kg3 {[%emt 0:00:17]} Rg6+ {[%emt 0:00:05]} 66. Kh2 {[%emt 0:00:39]} Rg2+ {[%emt 0:00:33]} 67. Kh1 {[%emt 0:00:04]} Rc2 {[%emt 0:00:25]} 68. Rb1 {[%emt 0:00:54]} Rc5 {[%emt 0:01:32]} 69. Rb4+ {[%emt 0:00:28]} Kf3 {[%emt 0:00:14]} 70. Rb3+ {[%emt 0:00:03]} Kg4 {[%emt 0:00:14]} 71. Nd7 {[%emt 0:01:02]} Rxa5 {[%emt 0:00:22]} 72. Nf6+ {[%emt 0:00:08]} Kf5 {[%emt 0:00:24]} 73. Nxh7 {[%emt 0:00:06]} Rxd5 {[%emt 0:00:33]} 74. Rb6 {[%emt 0:00:21]} a5 {[%emt 0:00:11]} 75. Ra6 {[%emt 0:00:02]} Ke5 {[%emt 0:01:18]} 76. Ng5 {[%emt 0:00:28]} Kf6 {[%emt 0:01:44]} 77. Ne4+ {[%emt 0:00:12]} Ke6 {[%emt 0:00:13]} 78. Kg1 {[%emt 0:00:14]} Nd3 {[%emt 0:00:43]} 79. Nc3 {[%emt 0:02:08]} Rg5+ {[%emt 0:00:28]} 80. Kf1 {[%emt 0:00:03]} Nb4 {[%emt 0:00:40]} 81. Ra8 {[%emt 0:00:57]} Re5 {[%emt 0:00:30]} 82. Ne2 {[%emt 0:00:24]} Nc6 {[%emt 0:00:22]} 83. Kf2 {[%emt 0:00:58]} Kd7 {[%emt 0:00:56]} 84. Nc3 {[%emt 0:00:24]} Kc7 {[%emt 0:00:13]} 85. Kf3 {[%emt 0:00:24]} Kb7 {[%emt 0:00:20]} 86. Rh8 {[%emt 0:00:05]} Nd4+ {[%emt 0:00:33]} 87. Kf2 {[%emt 0:00:06]} Nb5 {[%emt 0:00:34]} 88. Rh7+ {[%emt 0:00:19]} Kc6 {[%emt 0:00:13]} 89. Ne2 {[%emt 0:00:20]} a4 {[%emt 0:00:51]} 90. Rh4 {[%emt 0:00:05]} a3 {[%emt 0:00:15]} 91. Ra4 {[%emt 0:00:04]} Rxe2+ {[%emt 0:00:07]} 0-1

[Event "2nd Serbian League-Vojvodina 2023"]
[Site "Novi Sad"]
[Date "2023.11.04"]
[Round "4.22"]
[White "Dimitrijevic, Nenad"]
[Black "Gagic, Milan A"]
[Result "1/2-1/2"]
[ECO "D33"]
[WhiteElo "2196"]
[BlackElo "2164"]
[Annotator "ChessBase"]
[PlyCount "78"]
[EventDate "2023.10.22"]
[EventType "team-tourn"]
[EventCountry "SRB"]
[SourceTitle "playchess.com"]
[Source "ChessBase"]
[SourceQuality "1"]
[TimeControl "40/5400+30:1800+30"]

1. c4 {[%emt 1:31:00]} e6 {[%emt 1:31:00]} 2. Nf3 {[%emt 0:00:30]} d5 {[%emt 0:00:30]} 3. d4 {[%emt 0:00:30]} Nf6 {[%emt 0:00:30]} 4. Nc3 {[%emt 0:00:30]} c5 {[%emt 0:00:30]} 5. cxd5 {[%emt 0:00:30]} exd5 {[%emt 0:00:30]} 6. g3 {[%emt 0:00:00]} Nc6 {[%emt 0:00:30]} 7. Bg2 {[%emt 0:00:00]} cxd4 {[%emt 0:00:30]} 8. Nxd4 {[%emt 0:01:30]} Bc5 {[%emt 0:00:30]} 9. Nxc6 {[%emt 0:00:30]} bxc6 {[%emt 0:00:30]} 10. O-O {[%emt 0:00:30]} O-O {[%emt 0:00:00]} 11. Na4 {[%emt 0:00:30]} Bb6 {[%emt 0:01:00]} 12. Qc2 {[%emt 0:00:30]} Bd7 {[%emt 0:00:30]} 13. Bd2 {[%emt 0:00:00]} Re8 {[%emt 0:00:00]} 14. e3 {[%emt 0:01:00]} Ne4 {[%emt 0:01:00]} 15. Rac1 {[%emt 0:00:30]} Rc8 {[%emt 0:00:30]} 16. Nxb6 {[%emt 0:00:30]} axb6 {[%emt 0:00:30]} 17. f3 {[%emt 0:00:30]} Nxd2 {[%emt 0:00:00]} 18. Qxd2 {[%emt 0:00:30]} Qg5 {[%emt 0:00:00]} 19. Rfe1 {[%emt 0:00:30]} h5 {[%emt 0:00:00]} 20. Kf2 {[%emt 0:00:30]} h4 {[%emt 0:02:00]} 21. Qd4 {[%emt 0:00:30]} h3 {[%emt 0:00:30]} 22. Bf1 {[%emt 0:00:30]} c5 {[%emt 0:00:30]} 23. Qf4 {[%emt 0:00:30]} Qe7 {[%emt 0:00:30]} 24. e4 {[%emt 0:00:30]} c4 {[%emt 0:00:30]} 25. Qe3 {[%emt 0:00:30]} dxe4 {[%emt 0:00:30]} 26. Rxc4 {[%emt 0:00:30]} Rxc4 {[%emt 0:00:00]} 27. Bxc4 {[%emt 0:00:30]} Qb4 {[%emt 0:01:00]} 28. Qd4 {[%emt 0:00:30]} Be6 {[%emt 0:00:30]} 29. Rxe4 {[%emt 0:00:30]} Rc8 {[%emt 0:00:30]} 30. Rxe6 {[%emt 0:00:30]} Rxc4 {[%emt 0:00:30]} 31. Re8+ {[%emt 0:00:00]} Kh7 32. Qd3+ {[%emt 0:01:00]} g6 {[%emt 0:01:00]} 33. Re2 {[%emt 0:00:30]} Rc1 {[%emt 0:00:30]} 34. Qd5 {[%emt 0:00:00]} Rh1 35. Qxf7+ {[%emt 0:01:00]} Kh6 {[%emt 0:01:00]} 36. Ke3 {[%emt 0:00:30]} Qc5+ {[%emt 0:00:30]} 37. Ke4 {[%emt 0:00:30]} Rd1 {[%emt 0:00:00]} 38. Qf4+ {[%emt 0:00:30]} Kh7 {[%emt 0:01:00]} 39. Qf7+ {[%emt 0:00:30]} Kh6 {[%emt 0:00:30]} 1/2-1/2

[Event "2nd Serbian League-Vojvodina 2023"]
[Site "Novi Sad"]
[Date "2023.11.04"]
[Round "4.23"]
[White "Pavkov, Nebojsa"]
[Black "Sokic, Dragomir"]
[Result "1/2-1/2"]
[ECO "D00"]
[WhiteElo "2199"]
[BlackElo "2095"]
[Annotator "ChessBase"]
[PlyCount "136"]
[EventDate "2023.10.22"]
[EventType "team-tourn"]
[EventCountry "SRB"]
[SourceTitle "playchess.com"]
[Source "ChessBase"]
[SourceQuality "1"]
[TimeControl "40/5400+30:1800+30"]

1. d4 {[%emt 1:31:00]} d5 {[%emt 1:31:00]} 2. Nc3 {[%emt 0:00:30]} c5 {[%emt 0:00:30]} 3. Bf4 {[%emt 0:00:30]} Nf6 {[%emt 0:00:30]} 4. e3 {[%emt 0:00:30]} e6 {[%emt 0:00:30]} 5. Nb5 {[%emt 0:00:30]} Na6 6. h3 Qb6 {[%emt 0:01:00]} 7. a4 {[%emt 0:01:00]} c4 {[%emt 0:00:30]} 8. b3 {[%emt 0:00:30]} Ne4 {[%emt 0:00:30]} 9. c3 {[%emt 0:00:30]} Qa5 {[%emt 0:00:30]} 10. Rc1 {[%emt 0:00:30]} cxb3 {[%emt 0:00:30]} 11. Qxb3 {[%emt 0:00:30]} Qd8 {[%emt 0:00:30]} 12. Bd3 {[%emt 0:00:30]} Nd6 {[%emt 0:00:30]} 13. Nf3 {[%emt 0:00:30]} Nc7 {[%emt 0:00:30]} 14. Nxc7+ {[%emt 0:00:30]} Qxc7 {[%emt 0:00:30]} 15. O-O {[%emt 0:00:30]} Qb6 {[%emt 0:00:30]} 16. Qc2 {[%emt 0:00:30]} h6 {[%emt 0:00:30]} 17. Ne5 {[%emt 0:00:30]} Be7 {[%emt 0:00:30]} 18. Rb1 {[%emt 0:00:30]} Qd8 {[%emt 0:00:30]} 19. Rfc1 {[%emt 0:00:30]} O-O {[%emt 0:00:30]} 20. Qe2 {[%emt 0:00:30]} Bg5 {[%emt 0:00:30]} 21. Bh2 {[%emt 0:00:30]} Bf6 {[%emt 0:00:30]} 22. Nf3 {[%emt 0:00:30]} Be7 {[%emt 0:00:30]} 23. Nd2 {[%emt 0:00:30]} Bd7 {[%emt 0:00:30]} 24. Bc2 {[%emt 0:00:30]} Bc6 {[%emt 0:00:30]} 25. f3 {[%emt 0:00:30]} Qa5 {[%emt 0:00:30]} 26. Ra1 {[%emt 0:00:30]} Rfc8 {[%emt 0:00:30]} 27. Nb3 {[%emt 0:00:30]} Qd8 {[%emt 0:00:30]} 28. e4 {[%emt 0:00:30]} dxe4 {[%emt 0:00:30]} 29. fxe4 {[%emt 0:00:30]} Be8 {[%emt 0:00:30]} 30. Bd3 {[%emt 0:00:30]} Rc6 {[%emt 0:00:30]} 31. c4 {[%emt 0:00:30]} Bg5 {[%emt 0:00:30]} 32. Rcb1 {[%emt 0:00:30]} b6 {[%emt 0:00:30]} 33. e5 {[%emt 0:00:30]} Nf5 {[%emt 0:00:30]} 34. d5 {[%emt 0:00:30]} Rcc8 {[%emt 0:00:30]} 35. Qe4 {[%emt 0:00:30]} g6 {[%emt 0:00:30]} 36. g4 {[%emt 0:00:30]} exd5 {[%emt 0:00:30]} 37. cxd5 {[%emt 0:00:30]} Ne7 {[%emt 0:00:30]} 38. d6 {[%emt 0:00:30]} Rc3 {[%emt 0:00:30]} 39. Nd4 {[%emt 0:00:30]} Nc6 {[%emt 0:00:30]} 40. Nf3 {[%emt 0:00:30]} Na5 {[%emt 0:00:30]} 41. Bb5 {[%emt 0:30:30]} Nb3 {[%emt 0:30:30]} 42. Ra2 {[%emt 0:00:30]} Rac8 {[%emt 0:00:30]} 43. Rf1 {[%emt 0:00:30]} Nc5 {[%emt 0:00:30]} 44. Qd5 {[%emt 0:00:30]} Bxb5 {[%emt 0:00:30]} 45. axb5 {[%emt 0:00:30]} Qd7 {[%emt 0:00:30]} 46. Nxg5 {[%emt 0:00:30]} hxg5 {[%emt 0:00:30]} 47. Raf2 {[%emt 0:00:30]} Rf8 {[%emt 0:00:30]} 48. Kg2 {[%emt 0:00:30]} Ne6 {[%emt 0:00:30]} 49. Rf6 {[%emt 0:00:30]} Rc5 {[%emt 0:00:30]} 50. Qd3 {[%emt 0:00:30]} Kg7 {[%emt 0:00:30]} 51. Qf3 {[%emt 0:00:30]} Rxb5 {[%emt 0:00:30]} 52. Bg3 {[%emt 0:00:30]} Rb2+ {[%emt 0:00:30]} 53. Kh1 {[%emt 0:00:30]} Rc2 {[%emt 0:00:30]} 54. Kg1 {[%emt 0:00:30]} b5 {[%emt 0:00:30]} 55. h4 {[%emt 0:00:30]} Qc6 {[%emt 0:00:30]} 56. Rxf7+ {[%emt 0:00:30]} Rxf7 {[%emt 0:00:30]} 57. Qxf7+ Kh6 {[%emt 0:00:30]} 58. hxg5+ {[%emt 0:01:00]} Nxg5 {[%emt 0:00:30]} 59. Qf8+ {[%emt 0:00:30]} Kh7 60. Qe7+ {[%emt 0:00:30]} Kh6 {[%emt 0:01:00]} 61. Qf8+ {[%emt 0:00:30]} Kh7 62. Qe7+ {[%emt 0:00:30]} Kh6 {[%emt 0:01:00]} 63. Qf8+ {[%emt 0:00:30]} Kh7 {[%emt 0:00:30]} 64. Qe7+ {[%emt 0:00:30]} Kh6 {[%emt 0:00:30]} 65. Qf8+ {[%emt 0:00:30]} Kh7 {[%emt 0:00:30]} 66. Rf7+ {[%emt 0:00:30]} Nxf7 {[%emt 0:00:30]} 67. Qxf7+ {[%emt 0:00:00]} Kh8 {[%emt 0:00:00]} 68. Qf8+ {[%emt 0:01:00]} Kh7 {[%emt 0:01:00]} 1/2-1/2

[Event "2nd Serbian League-Vojvodina 2023"]
[Site "Novi Sad"]
[Date "2023.11.04"]
[Round "4.24"]
[White "Kovacevic, Dragisa"]
[Black "Cica, Dragan"]
[Result "1/2-1/2"]
[ECO "B50"]
[WhiteElo "2171"]
[BlackElo "2125"]
[Annotator "ChessBase"]
[PlyCount "149"]
[EventDate "2023.10.22"]
[EventType "team-tourn"]
[EventCountry "SRB"]
[SourceTitle "playchess.com"]
[Source "ChessBase"]
[SourceQuality "1"]
[TimeControl "40/5400+30:1800+30"]

1. e4 {[%emt 1:31:00]} c5 {[%emt 1:31:00]} 2. Nf3 {[%emt 0:00:30]} d6 {[%emt 0:00:30]} 3. Bc4 {[%emt 0:00:30]} e6 {[%emt 0:00:30]} 4. Qe2 {[%emt 0:00:30]} a6 {[%emt 0:00:30]} 5. a4 {[%emt 0:00:30]} Nc6 {[%emt 0:00:30]} 6. c3 {[%emt 0:00:30]} Be7 {[%emt 0:00:30]} 7. O-O {[%emt 0:00:30]} Nf6 {[%emt 0:00:30]} 8. Bb3 {[%emt 0:00:30]} O-O {[%emt 0:00:30]} 9. d3 {[%emt 0:00:30]} Qc7 {[%emt 0:00:30]} 10. Re1 {[%emt 0:00:30]} Bd7 {[%emt 0:00:30]} 11. Nbd2 {[%emt 0:00:30]} b5 {[%emt 0:00:30]} 12. axb5 {[%emt 0:00:30]} axb5 {[%emt 0:00:30]} 13. Rxa8 {[%emt 0:00:30]} Rxa8 {[%emt 0:00:30]} 14. Nf1 {[%emt 0:00:30]} c4 {[%emt 0:00:30]} 15. dxc4 Na5 16. Bc2 Nxc4 17. Ne3 {[%emt 0:01:30]} h6 {[%emt 0:01:30]} 18. Bd3 {[%emt 0:00:30]} Rc8 {[%emt 0:00:30]} 19. Nc2 {[%emt 0:00:30]} d5 {[%emt 0:00:30]} 20. e5 {[%emt 0:00:30]} Nh7 {[%emt 0:00:30]} 21. Nfd4 {[%emt 0:00:30]} Be8 {[%emt 0:00:30]} 22. f4 {[%emt 0:00:30]} b4 {[%emt 0:00:30]} 23. cxb4 {[%emt 0:00:30]} Qb6 {[%emt 0:00:30]} 24. b3 {[%emt 0:00:30]} Bxb4 {[%emt 0:00:30]} 25. Rd1 {[%emt 0:00:30]} Na5 {[%emt 0:00:30]} 26. Be3 {[%emt 0:00:30]} Qb8 {[%emt 0:00:30]} 27. f5 {[%emt 0:00:30]} Bc5 {[%emt 0:00:30]} 28. fxe6 {[%emt 0:00:30]} Qxe5 {[%emt 0:00:30]} 29. Bxh7+ {[%emt 0:00:30]} Kxh7 {[%emt 0:00:30]} 30. Qd3+ {[%emt 0:00:30]} Qe4 {[%emt 0:00:30]} 31. Qxe4+ dxe4 32. exf7 {[%emt 0:01:00]} Bxf7 {[%emt 0:01:00]} 33. b4 {[%emt 0:00:30]} Bxd4 {[%emt 0:00:30]} 34. Nxd4 {[%emt 0:00:30]} Nc4 {[%emt 0:00:30]} 35. Nc2 {[%emt 0:00:30]} Ne5 {[%emt 0:00:30]} 36. Ne1 {[%emt 0:00:30]} Ng4 {[%emt 0:00:30]} 37. Bc5 {[%emt 0:00:30]} Nf6 {[%emt 0:00:30]} 38. Rd4 {[%emt 0:00:30]} Ra8 {[%emt 0:00:30]} 39. Nc2 {[%emt 0:00:30]} Ra2 {[%emt 0:00:30]} 40. Ne3 {[%emt 0:00:30]} Rb2 {[%emt 0:00:30]} 41. h3 {[%emt 0:30:30]} Rb3 {[%emt 0:30:30]} 42. Rd6 {[%emt 0:00:30]} Kg6 {[%emt 0:00:30]} 43. Ng4 {[%emt 0:00:30]} Kg5 {[%emt 0:00:30]} 44. Be3+ {[%emt 0:00:30]} Kf5 {[%emt 0:00:30]} 45. Nxf6 {[%emt 0:00:30]} Rxe3 {[%emt 0:00:30]} 46. Ng4 {[%emt 0:00:30]} Rb3 {[%emt 0:00:30]} 47. Rd7 {[%emt 0:00:30]} Be6 {[%emt 0:00:30]} 48. Rd1 {[%emt 0:00:30]} Rxb4 {[%emt 0:00:30]} 49. Rf1+ {[%emt 0:00:30]} Kg5 {[%emt 0:00:30]} 50. Ne3 {[%emt 0:00:30]} Rb3 {[%emt 0:00:30]} 51. Kf2 {[%emt 0:00:30]} Rb2+ {[%emt 0:00:30]} 52. Kg3 {[%emt 0:00:30]} Re2 {[%emt 0:00:30]} 53. h4+ {[%emt 0:00:30]} Kh5 {[%emt 0:00:30]} 54. Kf4 {[%emt 0:00:30]} g5+ {[%emt 0:00:30]} 55. hxg5 {[%emt 0:00:30]} hxg5+ {[%emt 0:00:30]} 56. Kxe4 {[%emt 0:00:30]} Bd7 {[%emt 0:00:30]} 57. Rf6 {[%emt 0:00:30]} Ra2 {[%emt 0:00:30]} 58. g3 {[%emt 0:00:30]} Ra4+ {[%emt 0:00:30]} 59. Kf3 {[%emt 0:00:30]} g4+ {[%emt 0:00:30]} 60. Kf2 {[%emt 0:00:30]} Ra2+ {[%emt 0:00:30]} 61. Ke1 {[%emt 0:00:30]} Ra1+ {[%emt 0:00:30]} 62. Kd2 {[%emt 0:00:30]} Ra2+ {[%emt 0:00:30]} 63. Kd3 {[%emt 0:00:30]} Kg5 {[%emt 0:00:30]} 64. Rd6 {[%emt 0:00:30]} Bb5+ {[%emt 0:00:30]} 65. Ke4 {[%emt 0:00:30]} Be2 {[%emt 0:00:30]} 66. Rd5+ {[%emt 0:00:30]} Kg6 {[%emt 0:00:30]} 67. Rd4 {[%emt 0:00:30]} Ra6 {[%emt 0:00:30]} 68. Nd5 {[%emt 0:00:30]} Bf3+ {[%emt 0:00:30]} 69. Ke3 {[%emt 0:00:30]} Kf5 {[%emt 0:00:30]} 70. Nf4 {[%emt 0:00:30]} Ra3+ {[%emt 0:00:30]} 71. Rd3 {[%emt 0:00:30]} Ra4 {[%emt 0:00:30]} 72. Rc3 {[%emt 0:00:30]} Re4+ {[%emt 0:00:30]} 73. Kf2 {[%emt 0:00:30]} Re5 {[%emt 0:00:30]} 74. Ra3 {[%emt 0:00:30]} Rc5 {[%emt 0:00:30]} 75. Ra2 {[%emt 0:00:30]} 1/2-1/2

[Event "2nd Serbian League-Vojvodina 2023"]
[Site "Novi Sad"]
[Date "2023.11.05"]
[Round "5.1"]
[White "Benkovic, Petar"]
[Black "Samani, Yamac"]
[Result "0-1"]
[ECO "E94"]
[WhiteElo "2361"]
[BlackElo "2349"]
[Annotator "RC"]
[PlyCount "64"]
[EventDate "2023.10.22"]
[EventType "team-tourn"]
[EventCountry "SRB"]
[SourceTitle "playchess.com"]
[Source "ChessBase"]
[SourceQuality "1"]
[TimeControl "40/5400+30:1800+30"]

1. Nf3 {[%emt 0:00:30]} Nf6 {[%emt 0:02:40]} 2. c4 {[%emt 0:00:05]} g6 {[%emt 0:00:54]} 3. Nc3 {[%emt 0:00:14]} Bg7 {[%emt 0:00:20]} 4. e4 {[%emt 0:00:13]} d6 {[%emt 0:00:32]} 5. d4 {[%emt 0:00:13]} O-O {[%emt 0:00:57]} 6. Be2 {[%emt 0:00:34]} e5 {[%emt 0:00:10]} 7. O-O {[%emt 0:00:09]} Bg4 {[%emt 0:00:18]} 8. Be3 {[%emt 0:09:44]} Bxf3 {[%emt 0:00:17]} 9. Bxf3 {[%emt 0:00:02]} exd4 {[%emt 0:00:09]} 10. Bxd4 {[%emt 0:04:04]} Nc6 {[%emt 0:01:02]} 11. Be3 {[%emt 0:06:16]} Re8 {[%emt 0:00:16]} 12. Qc2 {[%emt 0:16:03]} Nd7 {[%emt 0:03:07]} 13. Rad1 {[%emt 0:01:19]} Bxc3 {[%emt 0:06:04]} 14. Qxc3 {[%emt 0:03:27]} Qf6 {[%emt 0:00:08]} 15. Qc1 {[%emt 0:07:59]} Nc5 {[%emt 0:03:54]} 16. Qc2 {[%emt 0:12:34]} Re7 {[%emt 0:09:30]} 17. Rfe1 {[%emt 0:10:29]} Rae8 {[%emt 0:03:57]} 18. h3 {[%emt 0:25:35]} Nxe4 {[%emt 0:06:23]} 19. Bxe4 {[%emt 0:00:00]} Rxe4 {[%emt 0:00:16]} 20. c5 {[%emt 0:00:00]} d5 {[%emt 0:02:23]} 21. Qd2 {[%emt 0:00:00]} d4 {[%emt 0:03:11]} 22. Bh6 {[%emt 0:02:00]} Rxe1+ {[%emt 0:02:48]} 23. Rxe1 {[%emt 0:00:00]} Rxe1+ {[%emt 0:00:20]} 24. Qxe1 {[%emt 0:00:00]} Qe5 {[%emt 0:02:03]} 25. Qc1 {[%emt 0:00:00]} Qe2 {[%emt 0:08:12]} 26. a3 {[%emt 0:00:00]} f6 {[%emt 0:05:06]} 27. b4 {[%emt 0:00:00]} Kf7 {[%emt 0:02:52]} 28. Bf4 {[%emt 0:03:00]} g5 {[%emt 0:12:14]} 29. Bd2 {[%emt 0:00:00]} Ne5 {[%emt 0:01:20]} 30. Qc2 {[%emt 0:00:00]} Kg7 {[%emt 0:05:56]} 31. c6 {[%emt 0:00:08]} bxc6 {[%emt 0:18:41]} 32. h4 {[%emt 0:00:10]} Ng4 {[%emt 0:00:00]} 0-1

[Event "2nd Serbian League-Vojvodina 2023"]
[Site "Novi Sad"]
[Date "2023.11.05"]
[Round "5.2"]
[White "Alimpic, Aleksa"]
[Black "Jocev, Milan"]
[Result "1/2-1/2"]
[ECO "D14"]
[WhiteElo "2290"]
[BlackElo "2338"]
[Annotator "RC"]
[PlyCount "74"]
[EventDate "2023.10.22"]
[EventType "team-tourn"]
[EventCountry "SRB"]
[SourceTitle "playchess.com"]
[Source "ChessBase"]
[SourceQuality "1"]
[TimeControl "40/5400+30:1800+30"]

1. d4 {[%emt 0:00:03]} d5 {[%emt 0:00:11]} 2. c4 {[%emt 0:00:12]} c6 {[%emt 0:00:11]} 3. cxd5 {[%emt 0:00:12]} cxd5 {[%emt 0:00:11]} 4. Bf4 {[%emt 0:00:09]} Nc6 {[%emt 0:00:12]} 5. e3 {[%emt 0:00:07]} Nf6 {[%emt 0:00:34]} 6. Nc3 {[%emt 0:00:09]} Bf5 {[%emt 0:00:59]} 7. Nf3 {[%emt 0:00:33]} e6 {[%emt 0:00:56]} 8. Qb3 {[%emt 0:00:15]} Bb4 {[%emt 0:00:34]} 9. Ne5 {[%emt 0:00:22]} O-O {[%emt 0:02:36]} 10. Nxc6 {[%emt 0:00:20]} Bxc3+ {[%emt 0:00:06]} 11. Qxc3 {[%emt 0:00:05]} bxc6 {[%emt 0:00:09]} 12. Qa3 {[%emt 0:00:05]} a5 {[%emt 0:04:52]} 13. Be2 {[%emt 0:01:42]} Qb6 {[%emt 0:04:17]} 14. O-O {[%emt 0:05:46]} Rfc8 {[%emt 0:04:51]} 15. Rac1 {[%emt 0:06:00]} a4 {[%emt 0:00:55]} 16. f3 {[%emt 0:06:15]} Ra7 {[%emt 0:14:39]} 17. Rc3 {[%emt 0:03:14]} Rb7 {[%emt 0:13:20]} 18. b3 {[%emt 0:13:45]} axb3 {[%emt 0:10:10]} 19. Rxb3 {[%emt 0:00:19]} Ra7 {[%emt 0:00:51]} 20. Rxb6 {[%emt 0:14:32]} Rxa3 {[%emt 0:00:06]} 21. Ra1 {[%emt 0:00:11]} e5 {[%emt 0:05:30]} 22. Bxe5 {[%emt 0:08:05]} Nd7 {[%emt 0:02:14]} 23. Rb3 {[%emt 0:01:57]} Rxb3 {[%emt 0:03:16]} 24. axb3 {[%emt 0:00:38]} Nxe5 {[%emt 0:00:41]} 25. dxe5 {[%emt 0:00:07]} h5 {[%emt 0:00:39]} 26. Kf2 {[%emt 0:05:49]} Rb8 {[%emt 0:04:22]} 27. Ra6 {[%emt 0:00:28]} Rxb3 {[%emt 0:02:14]} 28. Rxc6 {[%emt 0:00:13]} Rb2 {[%emt 0:00:26]} 29. Rc1 {[%emt 0:11:43]} Bd3 {[%emt 0:09:32]} 30. Re1 {[%emt 0:00:11]} Rc2 {[%emt 0:02:33]} 31. Kf1 {[%emt 0:00:55]} Bc4 {[%emt 0:00:38]} 32. Bxc4 {[%emt 0:00:58]} dxc4 {[%emt 0:00:11]} 33. Rd1 {[%emt 0:02:24]} Kf8 {[%emt 0:03:34]} 34. Rd5 {[%emt 0:04:25]} Ke7 {[%emt 0:00:27]} 35. f4 {[%emt 0:01:02]} h4 {[%emt 0:01:50]} 36. h3 {[%emt 0:01:34]} c3 {[%emt 0:00:27]} 37. Rc5 {[%emt 0:00:34]} f6 {[%emt 0:06:44]} 1/2-1/2